bitfinex-derivatives/quotes_SOLF0:USTF0_20241224
["timestamp","ask_amount","ask_price","bid_price","bid_amount"]
[1735015147222,2.6238,190.84,190.73,29.68619401]
[1735015147525,2.6238,190.84,190.73,28.07479401]
[1735015147724,4.32,190.87,190.73,28.07479401]
[1735015147725,4.32,190.87,190.73,25.44959401]
[1735015147924,2.6243,190.81,190.71,2.6255]
[1735015148121,21.12959401,190.85,190.68,4.32]
[1735015148321,1.5019,190.8,190.65,4.32]
[1735015149121,1.5019,190.8,190.67,21.12959401]
[1735015150222,1.5019,190.8,190.66,34.36296305]
[1735015152423,1.5019,190.8,190.63,4.32]
[1735015152424,34.36296305,190.79,190.63,4.32]
[1735015152624,34.36296305,190.75,190.59,1.6182]
[1735015152820,34.36296305,190.72,190.59,1.6182]
[1735015153016,34.36296305,190.72,190.58,2.6273]
[1735015153721,5.8611,190.74,190.63,2.6266]
[1735015154517,5.8611,190.74,190.57,34.36296305]
[1735015154720,2.6257,190.7,190.57,34.36296305]
[1735015155725,5.8611,190.74,190.65,2.6263]
[1735015155930,5.8611,190.74,190.62,4.32]
[1735015156322,2.6253,190.73,190.65,2.6263]
[1735015158226,2.6256,190.71,190.63,2.6266]
[1735015158624,5.8611,190.74,190.57,34.36296305]
[1735015158930,34.36296305,190.72,190.56,1.5289]
[1735015160527,34.36296305,190.69,190.51,34.36296305]
[1735015160729,34.36296305,190.66,190.51,34.36296305]
[1735015160927,4.32,190.65,190.49,62.75057166]
[1735015161230,4.32,190.65,190.52,2.6281]
[1735015161833,4.32,190.65,190.5,2.6284]
[1735015162132,4.32,190.65,190.49,4.32]
[1735015162831,2.6272,190.6,190.53,2.628]
[1735015163036,4.32,190.65,190.51,34.36296305]
[1735015163931,3.0666,190.68,190.51,34.36296305]
[1735015164132,3.0666,190.68,190.54,34.36296305]
[1735015165134,2.6265,190.64,190.57,2.6274]
[1735015166129,3.0666,190.68,190.54,34.36296305]
[1735015166331,2.6263,190.66,190.58,2.6273]
[1735015167233,2.6261,190.68,190.56,4.32]
[1735015167432,35.90406305,190.74,190.58,34.36296305]
[1735015168139,35.90406305,190.74,190.57,3.2095]
[1735015168432,34.36296305,190.7,190.57,1.6403]
[1735015168736,1.5883,190.69,190.56,4.32]
[1735015168933,5.9083,190.69,190.56,4.32]
[1735015169135,1.559,190.68,190.56,4.32]
[1735015169536,2.6265,190.64,190.56,4.32]
[1735015169837,4.32,190.72,190.58,34.36296305]
[1735015170338,4.32,190.72,190.57,3.0613]
[1735015171431,2.6261,190.67,190.61,2.6269]
[1735015171634,2.6261,190.67,190.57,3.0613]
[1735015172338,21.16795946,190.7,190.55,1.5633]
[1735015172633,1.5258,190.69,190.55,1.5633]
[1735015172935,2.6268,190.63,190.56,2.6275]
[1735015173132,4.24,190.65,190.51,1.5061]
[1735015173333,2.6277,190.56,190.5,2.6284]
[1735015173637,21.16795946,190.62,190.48,79.70883112]
[1735015173831,2.6274,190.58,190.48,25.40725946]
[1735015174032,4.7614,190.61,190.48,4.2393]
[1735015174227,4.7614,190.61,190.45,1.5061]
[1735015174637,2.6282,190.52,190.46,2.6289]
[1735015174934,2.6282,190.52,190.45,1.5061]
[1735015175135,4.24,190.56,190.43,85.39540749]
[1735015175136,25.40795946,190.56,190.43,2.6293]
[1735015175337,25.40795946,190.56,190.39,1.5061]
[1735015175643,0.7913077,190.55,190.39,1.5061]
[1735015175941,2.6284,190.51,190.4,2.6297]
[1735015176141,1.5691,190.5,190.4,2.6297]
[1735015176650,2.6287,190.49,190.42,2.6295]
[1735015178044,1.5691,190.5,190.4,2.6297]
[1735015179247,1.5691,190.5,190.39,1.5061]
[1735015179440,2.6289,190.47,190.41,2.6297]
[1735015180542,1.5691,190.5,190.39,1.5061]
[1735015180844,4.24,190.54,190.41,21.16795946]
[1735015181240,5.7844,190.59,190.44,21.16795946]
[1735015181434,5.7844,190.59,190.45,5.7826]
[1735015181645,2.6274,190.58,190.49,2.6285]
[1735015181839,5.7844,190.59,190.45,7.2703]
[1735015182641,2.6277,190.55,190.48,2.6286]
[1735015183439,2.6278,190.55,190.48,2.6286]
[1735015184549,2.6276,190.56,190.45,7.2703]
[1735015184850,5.7844,190.59,190.45,7.2703]
[1735015185049,2.6278,190.55,190.45,7.2703]
[1735015185250,5.7844,190.59,190.45,3.0303]
[1735015185444,5.7844,190.59,190.41,4.24]
[1735015185847,0.79124229,190.58,190.4,21.16795946]
[1735015186050,21.16795946,190.53,190.37,1.6296]
[1735015186249,5.798,190.52,190.37,1.6296]
[1735015186647,21.16795946,190.5,190.37,1.6296]
[1735015187249,2.6289,190.47,190.37,1.6296]
[1735015188458,2.6289,190.47,190.4,2.6298]
[1735015193857,2.6287,190.48,190.4,2.6298]
[1735015194065,1.5427,190.51,190.4,2.6298]
[1735015194762,2.629,190.47,190.4,2.6298]
[1735015195155,1.5427,190.51,190.37,1.6296]
[1735015195564,21.16795946,190.5,190.37,1.6296]
[1735015195765,2.6293,190.44,190.38,2.6301]
[1735015197466,2.6293,190.44,190.39,2.6299]
[1735015197770,1.5122,190.49,190.37,1.6296]
[1735015197968,4.24,190.5,190.37,22.79755946]
[1735015198469,6.8685,190.5,190.37,22.79755946]
[1735015199670,4.24,190.5,190.37,22.79755946]
[1735015199862,4.24,190.5,190.37,1.6296]
[1735015200066,25.40795946,190.5,190.37,1.6296]
[1735015200262,2.6292,190.45,190.38,2.63]
[1735015201471,2.6293,190.44,190.38,2.63]
[1735015203276,2.6294,190.43,190.37,2.6302]
[1735015204674,2.6296,190.42,190.37,2.6302]
[1735015204876,4.02,190.44,190.36,2.6304]
[1735015206576,2.6297,190.41,190.36,2.6304]
[1735015208078,21.16795946,190.43,190.28,56.93027166]
[1735015208278,21.16795946,190.4,190.28,56.93027166]
[1735015208578,1.5798,190.39,190.27,78.64544527]
[1735015209072,2.6303,190.37,190.31,2.6309]
[1735015209273,1.5798,190.39,190.27,78.64544527]
[1735015209476,21.16795946,190.37,190.27,77.09114527]
[1735015209673,2.6308,190.33,190.27,77.09114527]
[1735015209873,21.16795946,190.37,190.24,77.09114527]
[1735015210073,21.16795946,190.34,190.24,77.09114527]
[1735015210270,2.6313,190.29,190.24,77.09114527]
[1735015211279,4.02,190.32,190.22,2.6322]
[1735015211779,2.6314,190.29,190.23,2.6321]
[1735015212076,4.02,190.32,190.21,1.6165]
[1735015212280,4.02,190.32,190.21,22.78445946]
[1735015212470,25.18795946,190.37,190.21,22.78445946]
[1735015213078,25.18795946,190.37,190.21,1.6165]
[1735015213079,21.16795946,190.34,190.21,1.6165]
[1735015213477,2.6307,190.34,190.28,2.6314]
[1735015215083,2.6305,190.36,190.29,2.6313]
[1735015215384,2.6305,190.36,190.21,22.78445946]
[1735015215977,2.6305,190.36,190.25,2.6318]
[1735015216186,21.16795946,190.37,190.21,1.6165]
[1735015216981,2.6308,190.33,190.27,2.6315]
[1735015217187,21.16795946,190.37,190.21,22.78445946]
[1735015217680,2.6309,190.33,190.21,22.78445946]
[1735015218384,21.16795946,190.37,190.21,22.78445946]
[1735015218582,2.6312,190.31,190.21,22.78445946]
[1735015219182,2.6312,190.3,190.22,2.6322]
[1735015219382,21.16795946,190.34,190.22,2.6322]
[1735015219584,21.16795946,190.34,190.21,1.6165]
[1735015219884,2.6315,190.28,190.21,4.2489]
[1735015220282,2.6315,190.28,190.21,2.6324]
[1735015220781,2.6315,190.28,190.22,2.6323]
[1735015220975,4.2501,190.3,190.18,21.16795946]
[1735015221280,4.2501,190.3,190.21,2.6324]
[1735015221584,4.2501,190.3,190.18,21.16795946]
[1735015222185,1.6188,190.3,190.18,21.16795946]
[1735015222385,1.6188,190.3,190.18,4.02]
[1735015222581,3.1141,190.3,190.18,4.02]
[1735015223083,2.6315,190.28,190.21,2.6324]
[1735015223682,2.6315,190.28,190.22,2.6323]
[1735015225180,2.6319,190.25,190.19,2.6326]
[1735015225589,2.6319,190.25,190.16,1.6206]
[1735015225981,2.6315,190.28,190.16,1.6206]
[1735015226187,3.1141,190.3,190.16,1.6206]
[1735015226687,2.6318,190.26,190.2,2.6325]
[1735015227188,1.5776,190.29,190.16,1.6206]
[1735015227690,21.16795946,190.28,190.16,1.6206]
[1735015228183,2.632,190.24,190.16,1.6206]
[1735015229086,21.16795946,190.28,190.16,1.6206]
[1735015229291,2.6317,190.27,190.16,1.6206]
[1735015229488,21.16795946,190.28,190.2,2.6325]
[1735015229692,2.6317,190.26,190.13,5.5427]
[1735015230391,2.632,190.24,190.13,5.5427]
[1735015230890,21.16795946,190.28,190.13,5.5427]
[1735015231087,2.6319,190.25,190.19,2.6327]
[1735015232289,21.16795946,190.28,190.13,1.6427]
[1735015232593,21.16795946,190.25,190.13,1.6427]
[1735015232786,2.6325,190.21,190.13,1.6427]
[1735015232987,21.16795946,190.25,190.16,2.633]
[1735015233183,3.9,190.27,190.13,1.6427]
[1735015233689,3.9,190.27,190.16,2.6331]
[1735015233986,3.9,190.27,190.13,1.6427]
[1735015233987,2.6323,190.22,190.13,1.6427]
[1735015234388,2.6323,190.22,190.15,2.6332]
[1735015234589,2.6323,190.22,190.13,1.6427]
[1735015236495,2.6323,190.22,190.16,2.633]
[1735015238098,21.16795946,190.23,190.08,25.08795946]
[1735015238399,13.29986552,190.2,190.08,13.29986552]
[1735015238700,2.633,190.17,190.12,2.6335]
[1735015238893,13.29986552,190.2,190.08,13.29986552]
[1735015240200,5.4656,190.21,190.07,3.92]
[1735015240393,2.633,190.17,190.12,2.6337]
[1735015242294,5.4656,190.21,190.07,3.92]
[1735015242604,1.71260988,190.28,190.11,21.28005949]
[1735015242605,22.99266937,190.28,190.11,21.28005949]
[1735015242799,24.54696937,190.28,190.11,21.28005949]
[1735015242998,24.54696937,190.28,190.14,21.28005949]
[1735015242999,2.6317,190.27,190.14,21.28005949]
[1735015243194,3.26690988,190.28,190.15,5.5587]
[1735015243393,3.26690988,190.28,190.17,21.28005949]
[1735015243604,1.5039,190.31,190.26,2.6317]
[1735015244303,1.5039,190.31,190.17,21.28005949]
[1735015244499,1.5039,190.31,190.27,2.6316]
[1735015245504,2.6309,190.33,190.27,2.6316]
[1735015245692,1.5543,190.34,190.21,3.92]
[1735015245897,21.28005949,190.37,190.21,3.92]
[1735015246507,23.91035949,190.37,190.21,3.92]
[1735015248109,21.28005949,190.37,190.21,3.92]
[1735015248302,21.28005949,190.34,190.25,2.6319]
[1735015248700,1.5524,190.33,190.25,2.6319]
[1735015248901,1.5524,190.33,190.22,3.92]
[1735015249099,2.6311,190.31,190.23,2.6321]
[1735015250407,2.6311,190.31,190.24,2.632]
[1735015250600,1.5524,190.33,190.22,3.92]
[1735015250799,1.5524,190.33,190.27,2.6316]
[1735015250999,3.92,190.34,190.22,3.92]
[1735015251195,1.5524,190.38,190.23,21.28005949]
[1735015251600,1.5524,190.38,190.24,4.8103]
[1735015252401,2.6304,190.36,190.3,2.6311]
[1735015253896,1.5524,190.38,190.28,3.9]
[1735015254097,2.6299,190.4,190.28,3.9]
[1735015255499,2.6299,190.4,190.34,2.6306]
[1735015255711,2.6296,190.42,190.28,3.9]
[1735015256012,1.4954,190.43,190.4,2.6298]
[1735015256208,1.4954,190.43,190.29,21.28005949]
[1735015256900,21.28005949,190.46,190.29,21.28005949]
[1735015257105,3.112,190.48,190.29,21.28005949]
[1735015257301,3.112,190.48,190.28,3.9]
[1735015257302,3.112,190.48,190.33,21.28005949]
[1735015257507,3.112,190.48,190.34,8.5767]
[1735015257508,1.6129,190.48,190.34,8.5767]
[1735015257721,21.28005949,190.5,190.44,2.6292]
[1735015257908,21.28005949,190.5,190.34,8.5767]
[1735015258214,23.90855949,190.5,190.43,2.6293]
[1735015258810,21.28005949,190.5,190.41,2.6296]
[1735015259409,21.28005949,190.47,190.39,2.6298]
[1735015259609,21.28005949,190.47,190.34,8.5767]
[1735015260012,21.28005949,190.51,190.34,29.85675949]
[1735015260311,0.79161227,190.5,190.43,2.6294]
[1735015260511,2.6286,190.49,190.43,2.6294]
[1735015261311,21.28005949,190.47,190.34,8.5767]
[1735015262216,13.2630973,190.47,190.34,21.8397973]
[1735015262408,13.2630973,190.47,190.4,2.6298]
[1735015262608,13.2630973,190.47,190.34,21.8397973]
[1735015263214,13.2630973,190.44,190.34,4.6767]
[1735015263514,13.2630973,190.44,190.34,3.1279]
[1735015263714,2.6294,190.43,190.37,2.6301]
[1735015263918,13.2630973,190.44,190.34,3.1279]
[1735015264114,1.5249,190.46,190.34,3.1279]
[1735015265011,4.1539,190.46,190.39,2.6299]
[1735015265516,2.6291,190.45,190.37,2.6301]
[1735015265715,1.5249,190.46,190.37,2.6301]
[1735015265716,13.2630973,190.44,190.37,2.6301]
[1735015266613,2.6294,190.43,190.37,2.6301]
[1735015267010,2.6295,190.42,190.37,2.6301]
[1735015267213,13.2630973,190.44,190.35,2.6304]
[1735015267916,2.6297,190.41,190.35,2.6304]
[1735015268117,13.2630973,190.44,190.37,2.6302]
[1735015268318,1.599,190.45,190.32,3.72]
[1735015268515,1.5249,190.46,190.36,13.2630973]
[1735015268718,13.2630973,190.5,190.43,2.6293]
[1735015268919,13.2630973,190.5,190.38,3.72]
[1735015269312,2.6286,190.49,190.39,13.2630973]
[1735015269510,13.2630973,190.53,190.39,13.2630973]
[1735015269714,13.2630973,190.5,190.39,13.2630973]
[1735015269921,13.2630973,190.5,190.42,2.6295]
[1735015270121,13.2630973,190.47,190.38,1.5888]
[1735015270326,13.2630973,190.47,190.37,6.8698]
[1735015270521,13.2630973,190.47,190.39,2.6299]
[1735015270918,13.2630973,190.47,190.37,6.8698]
[1735015271320,15.8920973,190.47,190.4,2.6297]
[1735015271517,15.8920973,190.47,190.37,6.8698]
[1735015272415,15.8920973,190.47,190.41,2.6296]
[1735015272618,13.2630973,190.47,190.37,1.5545]
[1735015272825,1.5183,190.46,190.37,1.5545]
[1735015273533,2.6291,190.45,190.39,2.6298]
[1735015274530,1.5183,190.46,190.37,2.6301]
[1735015274733,13.2630973,190.44,190.35,3.72]
[1735015275034,13.2630973,190.44,190.31,6.7606]
[1735015275430,1.6089,190.45,190.32,56.05438589]
[1735015275831,1.6089,190.45,190.4,2.6297]
[1735015276532,1.6089,190.45,190.41,2.6297]
[1735015276734,3.1332,190.46,190.41,2.6297]
[1735015277734,3.1332,190.46,190.37,3.72]
[1735015278035,3.1332,190.46,190.35,3.72]
[1735015278236,4.7792,190.46,190.35,3.72]
[1735015278536,4.7792,190.46,190.32,56.05438589]
[1735015278736,4.7792,190.46,190.33,3.72]
[1735015278937,2.6294,190.44,190.36,2.6302]
[1735015279139,2.6294,190.44,190.33,3.72]
[1735015279741,4.7792,190.46,190.41,2.6296]
[1735015279943,13.2630973,190.5,190.38,13.2630973]
[1735015280137,13.2630973,190.5,190.39,3.72]
[1735015280335,13.2630973,190.5,190.44,2.6293]
[1735015281638,16.9830973,190.53,190.46,2.629]
[1735015281936,13.2630973,190.56,190.41,13.2630973]
[1735015282141,13.2630973,190.56,190.44,13.2630973]
[1735015282345,13.2630973,190.56,190.45,3.72]
[1735015282841,3.2725,190.57,190.47,13.2630973]
[1735015284535,13.2630973,190.59,190.47,13.2630973]
[1735015284736,1.546,190.62,190.5,13.2630973]
[1735015284935,1.546,190.62,190.51,3.72]
[1735015285442,13.2630973,190.6,190.51,3.72]
[1735015285644,1.5389,190.59,190.51,3.72]
[1735015286043,2.6273,190.58,190.52,2.6281]
[1735015286538,2.6275,190.57,190.51,3.72]
[1735015287642,1.5389,190.59,190.47,13.2630973]
[1735015287643,4.1662,190.59,190.52,2.6281]
[1735015287938,1.5389,190.59,190.48,3.66]
[1735015288543,1.5389,190.59,190.47,13.2630973]
[1735015288544,2.6275,190.57,190.51,2.6283]
[1735015289044,1.5389,190.59,190.51,2.6283]
[1735015289342,1.5389,190.59,190.52,2.6281]
[1735015289343,2.6273,190.58,190.52,2.6281]
[1735015290345,2.6275,190.57,190.52,2.6281]
[1735015290644,13.2630973,190.57,190.5,2.6284]
[1735015290838,1.5389,190.59,190.46,3.66]
[1735015291038,1.5389,190.59,190.57,2.6274]
[1735015291946,1.5389,190.59,190.52,3.66]
[1735015293447,4.1661,190.59,190.53,2.6279]
[1735015294343,2.6275,190.57,190.51,2.6282]
[1735015296446,14.8019973,190.59,190.47,16.9230973]
[1735015296447,2.6278,190.55,190.49,2.6285]
[1735015296647,13.2630973,190.56,190.44,16.9230973]
[1735015297145,13.2630973,190.56,190.44,13.2630973]
[1735015297547,2.6281,190.53,190.47,2.6288]
[1735015298051,2.6282,190.52,190.47,2.6288]
[1735015298244,13.2630973,190.56,190.43,3.66]
[1735015298444,2.6283,190.51,190.45,2.629]
[1735015299241,3.66,190.54,190.41,16.9230973]
[1735015299443,3.66,190.54,190.46,2.6289]
[1735015300451,2.6282,190.52,190.46,2.6289]
[1735015306555,2.6283,190.51,190.46,2.6289]
[1735015306854,1.5389,190.59,190.5,2.6284]
[1735015307050,2.6278,190.55,190.5,2.6284]
[1735015310351,14.8019973,190.59,190.44,13.2630973]
[1735015310553,13.2630973,190.53,190.4,4.6928]
[1735015310755,16.9230973,190.53,190.4,4.6928]
[1735015311052,1.6132,190.52,190.4,4.6928]
[1735015312253,1.5365,190.51,190.4,4.6928]
[1735015312454,2.6286,190.49,190.44,2.6291]
[1735015313359,1.5365,190.51,190.4,4.6928]
[1735015313553,2.6288,190.47,190.42,2.6294]
[1735015315154,1.5365,190.51,190.42,2.6294]
[1735015315354,2.6287,190.48,190.42,2.6294]
[1735015317256,2.6285,190.5,190.44,2.6292]
[1735015317559,1.5365,190.51,190.4,1.5358]
[1735015318264,4.1649,190.51,190.43,2.6294]
[1735015318457,1.5365,190.51,190.4,1.5358]
[1735015319061,2.6284,190.5,190.45,2.629]
[1735015319263,1.6132,190.52,190.42,13.2630973]
[1735015319560,2.6279,190.54,190.46,2.629]
[1735015319759,2.6279,190.54,190.44,3.54]
[1735015320363,2.6279,190.54,190.49,2.6285]
[1735015320556,15.8907973,190.56,190.45,13.2630973]
[1735015320862,2.6277,190.56,190.45,13.2630973]
[1735015321061,2.6277,190.56,190.5,2.6283]
[1735015322159,2.6277,190.56,190.51,2.6283]
[1735015323068,16.3978973,190.59,190.45,13.2630973]
[1735015323464,19.0250973,190.59,190.54,2.6279]
[1735015324062,16.3978973,190.59,190.45,13.2630973]
[1735015324768,2.6273,190.58,190.53,2.628]
[1735015326962,21.78809249,190.68,190.5,3.54]
[1735015327164,13.2630973,190.63,190.5,3.54]
[1735015327461,8.2661,190.67,190.51,1.4835]
[1735015327666,0.79085307,190.66,190.51,1.4835]
[1735015327867,13.2630973,190.62,190.51,1.4835]
[1735015328570,2.6269,190.61,190.55,2.6277]
[1735015328770,13.2630973,190.62,190.51,1.4835]
[1735015328967,13.2630973,190.62,190.51,4.616]
[1735015329271,2.6265,190.64,190.58,2.6273]
[1735015330561,14.8841973,190.65,190.54,13.2630973]
[1735015330760,1.6211,190.65,190.54,13.2630973]
[1735015331065,5.8247,190.67,190.54,13.2630973]
[1735015331265,13.2630973,190.65,190.51,4.616]
[1735015331460,13.2630973,190.62,190.51,4.616]
[1735015331869,13.2630973,190.62,190.55,2.6277]
[1735015333173,13.2630973,190.62,190.54,2.6278]
[1735015333475,13.2630973,190.62,190.51,4.616]
[1735015333971,13.2630973,190.62,190.57,2.6273]
[1735015334173,13.2630973,190.65,190.57,2.6273]
[1735015335276,13.2630973,190.65,190.51,4.616]
[1735015335475,13.2630973,190.65,190.58,2.6273]
[1735015335672,13.2630973,190.65,190.51,4.616]
[1735015336477,13.2630973,190.65,190.6,2.627]
[1735015336669,6.7386,190.67,190.6,2.627]
[1735015337073,6.7386,190.67,190.61,2.6268]
[1735015337477,3.1986,190.67,190.56,16.8030973]
[1735015338477,3.1986,190.67,190.62,2.6267]
[1735015340678,3.1986,190.67,190.6,2.627]
[1735015341178,3.1986,190.67,190.58,2.6272]
[1735015341376,13.2630973,190.65,190.58,2.6272]
[1735015342380,13.2630973,190.65,190.56,2.6275]
[1735015342586,3.52,190.64,190.56,2.6275]
[1735015343481,3.52,190.64,190.59,2.6271]
[1735015343676,3.52,190.64,190.52,3.52]
[1735015344084,3.52,190.64,190.6,2.627]
[1735015344284,3.52,190.64,190.52,3.52]
[1735015344685,3.52,190.64,190.51,8.136]
[1735015344880,3.52,190.64,190.56,2.6275]
[1735015345179,3.52,190.64,190.51,8.136]
[1735015345476,3.52,190.64,190.51,4.616]
[1735015346078,3.52,190.64,190.57,2.6274]
[1735015346490,3.1986,190.67,190.6,2.627]
[1735015346786,3.1986,190.67,190.56,16.7830973]
[1735015347179,13.2630973,190.69,190.64,2.6265]
[1735015348687,0.79062177,190.68,190.56,3.44]
[1735015349789,0.79062177,190.68,190.59,2.6271]
[1735015350288,13.2630973,190.69,190.59,2.6271]
[1735015350487,0.79066217,190.68,190.59,2.6271]
[1735015352091,0.79066217,190.68,190.6,2.627]
[1735015352293,13.2630973,190.69,190.6,2.627]
[1735015352493,0.79066279,190.68,190.6,2.627]
[1735015354086,1.5073,190.67,190.6,2.627]
[1735015354489,13.2630973,190.66,190.6,2.627]
[1735015354690,18.2396973,190.66,190.6,2.627]
[1735015355685,18.2396973,190.66,190.53,13.2630973]
[1735015355995,13.2630973,190.63,190.51,8.056]
[1735015356191,1.6068,190.62,190.51,1.4835]
[1735015356696,13.2630973,190.6,190.54,2.6279]
[1735015356891,13.2630973,190.6,190.49,3.44]
[1735015357089,16.7030973,190.6,190.49,3.44]
[1735015357495,16.7030973,190.6,190.47,13.2630973]
[1735015357894,16.7030973,190.6,190.47,16.7030973]
[1735015358593,13.2630973,190.57,190.46,3.0248]
[1735015358789,2.6279,190.54,190.44,13.2630973]
[1735015360096,2.628,190.53,190.47,2.6288]
[1735015360799,16.7030973,190.54,190.41,18.3057973]
[1735015360998,1.5518,190.53,190.41,18.3057973]
[1735015361499,1.5518,190.52,190.41,18.3057973]
[1735015362401,2.6283,190.51,190.45,2.6291]
[1735015363698,1.5518,190.52,190.41,18.3057973]
[1735015363998,4.18,190.52,190.46,2.629]
[1735015365296,1.5518,190.52,190.48,2.6287]
[1735015366095,1.5518,190.52,190.45,2.6291]
[1735015367498,1.5518,190.52,190.46,2.6289]
[1735015367700,1.5518,190.53,190.41,18.3057973]
[1735015367902,1.5518,190.53,190.44,13.2630973]
[1735015368802,1.5518,190.53,190.46,2.6289]
[1735015369003,1.5518,190.53,190.44,13.2630973]
[1735015369405,1.5518,190.53,190.49,2.6284]
[1735015369899,1.5518,190.53,190.46,2.6289]
[1735015370097,1.5518,190.53,190.44,13.2630973]
[1735015371404,1.5518,190.53,190.49,2.6284]
[1735015372107,2.6279,190.55,190.49,2.6284]
[1735015373502,1.4827,190.56,190.44,13.2630973]
[1735015373696,13.2630973,190.54,190.41,1.6027]
[1735015374305,13.2630973,190.54,190.43,2.6293]
[1735015374501,0.79136615,190.53,190.43,2.6293]
[1735015375411,2.6286,190.49,190.43,2.6293]
[1735015375709,2.6286,190.49,190.44,2.6293]
[1735015381215,13.2630973,190.54,190.41,1.6027]
[1735015381418,3.34,190.53,190.41,1.6027]
[1735015383020,2.6283,190.52,190.46,2.6289]
[1735015383620,3.34,190.53,190.46,2.6289]
[1735015383817,2.6283,190.51,190.46,2.6289]
[1735015384319,8.48329212,190.5,190.46,2.6289]
[1735015388221,8.48329212,190.52,190.48,2.6287]
[1735015388422,8.48329212,190.54,190.47,8.48329212]
[1735015389417,8.48329212,190.54,190.5,2.6284]
[1735015394228,2.628,190.53,190.48,2.6286]
[1735015394419,8.48329212,190.54,190.45,8.48329212]
[1735015395018,21.78809249,190.63,190.47,8.48329212]
[1735015395019,4.8242,190.58,190.47,8.48329212]
[1735015395326,8.48329212,190.56,190.49,8.48329212]
[1735015395531,8.48329212,190.56,190.53,2.6279]
[1735015396125,8.48329212,190.58,190.49,8.48329212]
[1735015396323,8.48329212,190.58,190.5,1.5892]
[1735015397519,8.48329212,190.58,190.53,2.6279]
[1735015397722,8.48329212,190.54,190.45,92.13750489]
[1735015397924,3.34,190.6,190.46,8.48329212]
[1735015397925,8.48329212,190.52,190.46,8.48329212]
[1735015398228,8.48329212,190.52,190.49,2.6285]
[1735015400027,8.48329212,190.54,190.51,2.6283]
[1735015400228,8.48329212,190.54,190.46,8.48329212]
[1735015401025,8.48329212,190.54,190.48,2.6286]
[1735015401225,8.48329212,190.54,190.46,8.48329212]
[1735015402026,8.48329212,190.54,190.51,2.6282]
[1735015404041,8.48329212,190.54,190.46,8.48329212]
[1735015404235,8.48329212,190.54,190.52,2.6281]
[1735015407237,8.48329212,190.56,190.53,2.628]
[1735015408740,8.48329212,190.56,190.52,2.6281]
[1735015408946,2.6281,190.53,190.44,1.5885]
[1735015409139,8.48329212,190.5,190.44,1.5885]
[1735015409444,5.9079,190.54,190.44,10.07179212]
[1735015409636,8.48329212,190.53,190.46,8.48329212]
[1735015410442,3.28,190.54,190.52,2.6281]
[1735015410635,11.76329212,190.54,190.52,2.6281]
[1735015411144,8.48329212,190.54,190.52,2.6281]
[1735015411346,3.28,190.58,190.5,8.48329212]
[1735015411543,8.48329212,190.58,190.5,8.48329212]
[1735015412445,8.48329212,190.58,190.53,2.628]
[1735015412849,8.48329212,190.58,190.5,8.48329212]
[1735015413044,8.48329212,190.58,190.52,8.48329212]
[1735015413349,8.48329212,190.6,190.52,8.48329212]
[1735015413849,8.48329212,190.58,190.5,8.48329212]
[1735015414443,11.11069212,190.58,190.5,8.48329212]
[1735015415545,11.11069212,190.58,190.53,2.6279]
[1735015418348,2.6274,190.58,190.53,2.6279]
[1735015418647,8.48329212,190.58,190.55,2.6277]
[1735015418845,8.48329212,190.58,190.5,8.48329212]
[1735015419244,8.48329212,190.6,190.52,8.48329212]
[1735015420040,2.6269,190.61,190.54,2.6278]
[1735015420249,2.6269,190.61,190.54,8.48329212]
[1735015420250,11.11019212,190.61,190.54,8.48329212]
[1735015420449,8.48329212,190.61,190.54,8.48329212]
[1735015420649,8.48329212,190.61,190.58,2.6273]
[1735015422245,8.48329212,190.62,190.6,2.627]
[1735015423053,3.2087,190.64,190.6,2.627]
[1735015423249,8.48329212,190.63,190.6,2.627]
[1735015425750,11.11009212,190.63,190.57,2.6274]
[1735015425950,8.48329212,190.61,190.54,8.48329212]